fUSD/lending_fUSD_20260418
["ID","MTS","AMOUNT","RATE_DAILY","PERIOD"]
[420716052,1776486640660,-525.65339086,0.000102,2]
[420716053,1776486642106,-2681.57528869,0.000102,2]
[420716054,1776486642122,-42874.04108691,0.000102,2]
[420716055,1776486642133,-260.84959426,0.000102,2]
[420716065,1776486644365,-2198.14611638,0.000102,2]
[420716070,1776486644660,-343.10411232,0.000102,2]
[420716071,1776486644671,-211399.02851303,0.000102,2]
[420716072,1776486644713,-522.62702627,0.000102,2]
[420716075,1776486646336,-625.54012998,0.000102,2]
[420716076,1776486646349,-1741.50957309,0.000102,2]
[420716077,1776486646620,-289.53899997,0.000102,2]
[420716078,1776486646738,-111488.99050616,0.000102,2]
[420716079,1776486646855,-1176.41466757,0.000102,2]
[420716112,1776487614116,-186.87885141,8.219e-05,2]
[420716168,1776487832414,-257.0,8.219e-05,2]
[420716169,1776487832424,-11.89114859,8.219e-05,2]
[420716170,1776487832434,-153.34,8.22e-05,2]
[420716171,1776487832444,-348.44885141,8.273e-05,2]
[420716172,1776487832455,-1065.16227668,8.273e-05,2]
[420716173,1776487832467,-186.38887191,8.273e-05,2]
[420716174,1776487832477,-250.0,8.273e-05,2]
[420716175,1776487832487,-3261.94204878,8.273e-05,2]
[420716176,1776487832498,-36.2338534,8.273e-05,2]
[420716177,1776487832508,-223.81,8.316e-05,2]
[420716178,1776487832517,-128.7885211,8.358e-05,2]
[420716179,1776487832529,-121.2114789,8.358e-05,2]
[420716180,1776487832539,-500.0,8.654e-05,2]
[420716181,1776487832549,-500.0,8.734e-05,2]
[420716182,1776487832558,-21.43149888,8.778e-05,2]
[420716221,1776487832991,-202.37850112,8.778e-05,2]
[420716223,1776487833001,-500.75597371,8.793e-05,2]
[420716225,1776487833011,-500.0,8.793e-05,2]
[420716227,1776487833021,-500.0,8.793e-05,2]
[420716229,1776487833030,-300.0,8.814e-05,2]
[420716231,1776487833040,-480.0,8.814e-05,2]
[420716233,1776487833050,-12147.40835988,8.815e-05,2]
[420716236,1776487833063,-574.81083747,8.815e-05,2]
[420716239,1776487833087,-5267.33691747,8.815e-05,2]
[420716240,1776487833099,-340412.34711447,8.815e-05,2]
[420716241,1776487833110,-26632.20077845,8.815e-05,2]
[420716242,1776487833122,-123437.03121599,8.815e-05,2]
[420716243,1776487833134,-87817.69351543,8.815e-05,2]
[420716244,1776487833145,-2616.10127688,8.815e-05,2]
[420716245,1776487833157,-458.44747329,8.815e-05,2]
[420716246,1776487833169,-1950.17403298,8.815e-05,2]
[420716247,1776487833181,-1200.46035432,8.815e-05,2]
[420716248,1776487833192,-2412.11522595,8.815e-05,2]
[420716249,1776487833205,-751.52019742,8.815e-05,2]
[420716250,1776487833214,-273.0,8.857e-05,2]
[420716251,1776487833224,-1000.0,8.913e-05,2]
[420716252,1776487833234,-2710.854,8.914e-05,2]
[420716253,1776487833244,-40.48176718,8.914e-05,2]
[420716254,1776487833256,-128.13223282,8.914e-05,2]
[420716255,1776487833266,-150.0,8.914e-05,2]
[420716256,1776487833275,-23.35027991,8.915e-05,2]
[420716260,1776487838559,-330.47737862,8.814e-05,2]
[420716261,1776487838613,-169.52262138,8.814e-05,2]
[420716262,1776487838623,-500.0,8.814e-05,2]
[420716263,1776487838632,-500.0,8.814e-05,2]
[420716264,1776487838642,-291.30595036,8.814e-05,2]
[420716265,1776487838651,-409.52550925,8.814e-05,2]
[420716266,1776487838661,-2227.08288444,8.915e-05,2]
[420716267,1776487838672,-2470.04846018,8.915e-05,2]
[420716268,1776487838721,-1000.000001,8.915e-05,2]
[420716269,1776487838776,-571.18927001,8.915e-05,2]
[420716270,1776487840561,-500.0,8.814e-05,2]
[420716271,1776487840571,-500.0,8.814e-05,2]
[420716272,1776487840580,-500.0,8.814e-05,2]
[420716273,1776487840590,-401.88062623,8.814e-05,2]
[420716274,1776487840600,-1400.51994386,8.915e-05,2]
[420716275,1776487840613,-453.42859136,8.915e-05,2]
[420716276,1776487840624,-1138.64469459,8.915e-05,2]
[420716277,1776487840639,-23789.46727465,8.915e-05,2]
[420716278,1776487840649,-2500.0,8.915e-05,2]
[420716279,1776487840659,-2000.0,8.946e-05,2]
[420716280,1776487840668,-615.32089662,8.993e-05,2]
[420716281,1776487840678,-500.0,8.993e-05,2]
[420716282,1776487840688,-151.0,9.012e-05,2]
[420716283,1776487840698,-151.0,9.012e-05,2]
[420716284,1776487840708,-930.05,9.013e-05,2]
[420716285,1776487840718,-250.0,9.014e-05,2]
[420716286,1776487840729,-500.0,9.015e-05,2]
[420716287,1776487840739,-500.0,9.015e-05,2]
[420716288,1776487840749,-500.0,9.015e-05,2]
[420716289,1776487840759,-500.0,9.015e-05,2]
[420716290,1776487840768,-500.0,9.015e-05,2]
[420716291,1776487840778,-500.0,9.015e-05,2]
[420716292,1776487840788,-500.0,9.015e-05,2]
[420716293,1776487840798,-500.0,9.015e-05,2]
[420716294,1776487840808,-500.0,9.015e-05,2]
[420716295,1776487840817,-500.0,9.015e-05,2]
[420716296,1776487840827,-500.0,9.015e-05,2]
[420716297,1776487840837,-500.0,9.015e-05,2]
[420716298,1776487840846,-500.0,9.015e-05,2]
[420716299,1776487840856,-500.0,9.015e-05,2]
[420716300,1776487840865,-500.0,9.015e-05,2]
[420716301,1776487840875,-500.0,9.015e-05,2]
[420716302,1776487840884,-500.0,9.015e-05,2]
[420716303,1776487840894,-500.0,9.015e-05,2]
[420716304,1776487840903,-500.0,9.015e-05,2]
[420716305,1776487840912,-500.0,9.015e-05,2]
[420716306,1776487840921,-500.0,9.015e-05,2]
[420716307,1776487840931,-500.0,9.015e-05,2]
[420716308,1776487840941,-500.0,9.015e-05,2]
[420716309,1776487840951,-500.0,9.015e-05,2]
[420716310,1776487840960,-500.0,9.015e-05,2]
[420716311,1776487840970,-500.0,9.015e-05,2]
[420716312,1776487840979,-500.0,9.015e-05,2]
[420716313,1776487840989,-500.0,9.015e-05,2]
[420716314,1776487840999,-500.0,9.015e-05,2]
[420716315,1776487841010,-500.0,9.015e-05,2]
[420716316,1776487841019,-500.0,9.015e-05,2]
[420716317,1776487841029,-499.6651445,9.041e-05,2]
[420716318,1776487841039,-150.0,9.053e-05,2]
[420716319,1776487841049,-193.71881067,9.1e-05,2]
[420716320,1776487841058,-5000.0,9.1e-05,2]
[420716321,1776487841068,-250.0,9.1e-05,2]
[420716322,1776487841077,-403.0,9.111e-05,2]
[420716323,1776487841086,-150.0,9.173e-05,2]
[420716324,1776487841096,-1402.0,9.179e-05,2]
[420716325,1776487841105,-1559.0,9.198e-05,2]
[420716326,1776487841115,-537.0,9.216e-05,2]
[420716327,1776487841124,-1028.0,9.234e-05,2]
[420716328,1776487841133,-223.81,9.24e-05,2]
[420716329,1776487841143,-930.05,9.287e-05,2]
[420716330,1776487841152,-500.0,9.289e-05,2]
[420716331,1776487841161,-1600.0,9.307e-05,2]
[420716332,1776487841170,-501.15648876,9.341e-05,2]
[420716333,1776487841180,-165.61,9.352e-05,2]
[420716334,1776487841189,-3075.72020963,9.374e-05,2]
[420716335,1776487841199,-150.0,9.524e-05,2]
[420716336,1776487841208,-930.05,9.561e-05,2]
[420716337,1776487841218,-500.0,9.563e-05,2]
[420716338,1776487841227,-322.0,9.66e-05,2]
[420716339,1776487841238,-7255.32678863,9.689e-05,2]
[420716340,1776487841247,-5000.0,9.689e-05,2]
[420716341,1776487841257,-5000.0,9.689e-05,2]
[420716342,1776487841267,-5000.0,9.689e-05,2]
[420716343,1776487841276,-420.0,9.695e-05,2]
[420716344,1776487841286,-223.81,9.702e-05,2]
[420716345,1776487841296,-286.65485468,9.798e-05,2]
[420716346,1776487841305,-255.0,9.805e-05,2]
[420716347,1776487841315,-930.05,9.835e-05,2]
[420716348,1776487841324,-500.0,9.837e-05,2]
[420716349,1776487841334,-496.95258908,9.999e-05,2]
[420716350,1776487841343,-317.44476719,0.0001,2]
[420716351,1776487841353,-200.0,0.0001,2]
[420716352,1776487841363,-151.0,0.0001,2]
[420716353,1776487841373,-151.0,0.0001,2]
[420716354,1776487841383,-151.0,0.0001,2]
[420716355,1776487841393,-151.0,0.0001,2]
[420716356,1776487841403,-500.0,0.0001,2]
[420716357,1776487841412,-151.0,0.0001,2]
[420716358,1776487841421,-151.0,0.0001,2]
[420716359,1776487841431,-151.0,0.0001,2]
[420716360,1776487841441,-151.0,0.0001,2]
[420716361,1776487841450,-151.0,0.0001,2]
[420716362,1776487841460,-151.0,0.0001,2]
[420716363,1776487841470,-151.0,0.0001,2]
[420716364,1776487841480,-151.0,0.0001,2]
[420716365,1776487841490,-151.0,0.0001,2]
[420716366,1776487841500,-298.57995616,0.0001,2]
[420716367,1776487841510,-500.0,0.0001,2]
[420716368,1776487841520,-500.0,0.0001,2]
[420716369,1776487841530,-500.0,0.0001,2]
[420716370,1776487841541,-500.0,0.0001,2]
[420716371,1776487841551,-500.0,0.0001,2]
[420716372,1776487841560,-500.0,0.0001,2]
[420716373,1776487841573,-500.0,0.0001,2]
[420716374,1776487841583,-500.0,0.0001,2]
[420716375,1776487841592,-500.0,0.0001,2]
[420716376,1776487841603,-500.0,0.0001,2]
[420716377,1776487841612,-500.0,0.0001,2]
[420716378,1776487841622,-500.0,0.0001,2]
[420716379,1776487841631,-151.56176044,0.0001,2]
[420716380,1776487841641,-151.0,0.0001,2]
[420716381,1776487841652,-14370.0,0.0001,2]
[420716382,1776487841662,-2000.0,0.00010064,2]
[420716383,1776487841672,-150.0,0.00010091,2]
[420716384,1776487841683,-433144.3715,0.00010092,2]
[420716385,1776487841693,-200.0,0.000101,2]
[420716386,1776487841704,-930.05,0.00010109,2]
[420716387,1776487841714,-500.0,0.00010111,2]
[420716388,1776487841724,-223.81,0.00010164,2]
[420716389,1776487841733,-172.22,0.00010175,2]
[420716390,1776487841742,-151.29,0.00010175,2]
[420716391,1776487841752,-196.20516507,0.0001019,2]
[420716392,1776487841763,-151.0,0.00010197,2]
[420716393,1776487841772,-2731.6245068,0.00010199,2]
[420716394,1776487841782,-6879.2631124,0.000102,2]
[420716395,1776487841792,-42991.89347472,0.000102,2]
[420716396,1776487843199,-380.40932695,0.000102,2]
[420716397,1776487843211,-4323.43327946,0.000102,2]
[420716398,1776487843223,-564.11572434,0.000102,2]
[420716399,1776487843234,-504.38,0.000102,2]
[420716400,1776487843259,-1738.02322196,0.000102,2]
[420716401,1776487843271,-390.84170001,0.000102,2]
[420716402,1776487843283,-3056.19022377,0.000102,2]
[420716403,1776487843298,-8441.88632382,0.000102,2]
[420716405,1776487843330,-1208.41684316,0.000102,2]
[420716406,1776487843374,-1127.06611192,0.000102,2]
[420716429,1776487844411,-25626.80326679,0.000102,2]
[420716430,1776487844420,-7230.26887163,0.000102,2]
[420716432,1776487844433,-8936.78485837,0.000102,2]
[420716433,1776487844443,-9841.0792024,0.000102,2]
[420716434,1776487844452,-951.7496954,0.000102,2]
[420716435,1776487844463,-6468.52650545,0.000102,2]
[420716436,1776487844518,-343.07272125,0.000102,2]
[420716438,1776487844742,-682.05088803,0.000102,2]
[420716444,1776487846525,-86469.79342541,8.915e-05,2]
[420716445,1776487846537,-1295.79346964,8.915e-05,2]
[420716446,1776487846549,-5414.6172557,8.915e-05,2]
[420716447,1776487846846,-8574.70448286,8.915e-05,2]
[420716448,1776487846858,-52169.95948758,8.915e-05,2]
[420716462,1776488755779,361.11090772,8.014e-05,30]
[420716463,1776488756420,361.11090772,8.014e-05,30]
[420716472,1776489031611,-1200.0,8.013e-05,2]
[420716473,1776489031621,-251.0,8.013e-05,2]
[420716474,1776489031632,-250.0,8.013e-05,2]
[420716475,1776489031642,-153.23295601,8.014e-05,2]
[420716476,1776489031651,-16.6565409,8.014e-05,2]
[420716477,1776489031663,-134.51622225,8.014e-05,2]
[420716478,1776489031672,-155.37473709,8.014e-05,2]
[420716479,1776489031682,-154.00632815,8.014e-05,2]
[420716480,1776489031691,-151.69617347,8.014e-05,2]
[420716481,1776489031700,-202.6843081,8.014e-05,2]
[420716482,1776489031709,-150.0,8.014e-05,2]
[420716483,1776489031718,-66.7692183,8.096e-05,2]
[420716484,1776489031730,-183.2307817,8.096e-05,2]
[420716485,1776489031739,-150.03,8.22e-05,2]
[420716486,1776489031748,-176.7392183,8.22e-05,30]
[420716487,1776489031760,-184.37168942,8.22e-05,30]
[420716488,1776489031770,-361.11090772,8.229e-05,30]
[420716489,1776489031779,-300.0,8.237e-05,2]
[420716490,1776489031788,-1265.62721443,8.255e-05,2]
[420716491,1776489031800,-19215.47157533,8.255e-05,2]
[420716492,1776489031830,-343.29292514,8.255e-05,2]
[420716493,1776489031843,-2596.4682851,8.255e-05,2]
[420716494,1776489031862,-150.0,8.311e-05,2]
[420716495,1776489031873,-208.0,8.425e-05,2]
[420716496,1776489031883,-6881.0984659,8.44e-05,2]
[420716497,1776489031896,-7489.77047713,8.44e-05,2]
[420716498,1776489031909,-2870.83056116,8.44e-05,2]
[420716499,1776489031921,-1801.84831484,8.44e-05,2]
[420716500,1776489031931,-428.0,8.442e-05,2]
[420716501,1776489031941,-150.33,8.442e-05,2]
[420716502,1776489031951,-1886.0,8.468e-05,2]
[420716503,1776489031961,-1566.0,8.485e-05,2]
[420716504,1776489031971,-1215.0,8.502e-05,2]
[420716505,1776489031981,-749.0,8.519e-05,2]
[420716506,1776489031991,-245.0,8.536e-05,2]
[420716507,1776489032001,-1132.0,8.55e-05,2]
[420716508,1776489032010,-666.0,8.567e-05,2]
[420716509,1776489032020,-201.14,8.583e-05,2]
[420716510,1776489032030,-1785.0,8.584e-05,2]
[420716511,1776489032039,-519.0,8.601e-05,2]
[420716512,1776489032050,-150.0,8.607e-05,2]
[420716513,1776489032060,-150.0,8.607e-05,2]
[420716514,1776489032070,-1937.0,8.618e-05,2]
[420716515,1776489032079,-8591.35526922,8.633e-05,2]
[420716516,1776489032089,-709.0,8.635e-05,2]
[420716518,1776489032099,-316.58612091,8.693e-05,2]
[420716520,1776489032108,-500.0,8.693e-05,2]
[420716522,1776489032118,-500.0,8.693e-05,2]
[420716524,1776489032128,-500.0,8.693e-05,2]
[420716525,1776489032138,-500.0,8.693e-05,2]
[420716526,1776489032148,-210.99979693,8.693e-05,2]
[420716527,1776489032158,-500.0,8.693e-05,2]
[420716528,1776489032167,-500.0,8.713e-05,2]
[420716529,1776489032177,-500.0,8.714e-05,2]
[420716530,1776489032187,-500.0,8.714e-05,2]
[420716531,1776489032197,-500.0,8.714e-05,2]
[420716532,1776489032207,-500.0,8.714e-05,2]
[420716533,1776489032217,-305.72647557,8.714e-05,2]
[420716534,1776489032227,-500.0,8.714e-05,2]
[420716535,1776489032236,-500.0,8.714e-05,2]
[420716536,1776489032251,-500.0,8.714e-05,2]
[420716537,1776489032262,-500.0,8.714e-05,2]
[420716538,1776489032272,-500.0,8.714e-05,2]
[420716539,1776489032282,-500.0,8.714e-05,2]
[420716540,1776489032292,-500.0,8.714e-05,2]
[420716541,1776489032302,-500.0,8.714e-05,2]
[420716542,1776489032311,-500.0,8.714e-05,2]
[420716543,1776489032322,-500.0,8.714e-05,2]
[420716544,1776489032332,-500.0,8.714e-05,2]
[420716545,1776489032342,-500.0,8.714e-05,2]
[420716546,1776489032352,-500.0,8.714e-05,2]
[420716547,1776489032364,-500.0,8.714e-05,2]
[420716548,1776489032374,-500.0,8.714e-05,2]
[420716549,1776489032384,-2500.0,8.715e-05,2]
[420716550,1776489032395,-212.55124741,8.715e-05,2]
[420716551,1776489032408,-868.52832,8.715e-05,2]
[420716552,1776489032421,-8851.01212348,8.715e-05,2]
[420716553,1776489032434,-6458.50307235,8.715e-05,2]
[420716554,1776489032447,-5323.78600678,8.715e-05,2]
[420716555,1776489038122,-1230.72968212,8.715e-05,2]
[420716607,1776489039962,-294.26987052,8.715e-05,2]
[420716608,1776489040099,-711.04895033,8.715e-05,2]
[420716609,1776489040113,-1386.70499995,8.715e-05,2]
[420716610,1776489040134,-659.2444976,8.715e-05,2]
[420716611,1776489040146,-2878.09324054,8.715e-05,2]
[420716612,1776489040164,-356.90157413,8.715e-05,2]
[420716613,1776489040175,-1531.66267941,8.715e-05,2]
[420716614,1776489040187,-277.1987,8.715e-05,2]
[420716626,1776489042803,-5038.18168835,8.715e-05,2]
[420716627,1776489042816,-41049.2077956,8.715e-05,2]
[420716628,1776489042909,-840.79487779,8.715e-05,2]
[420716629,1776489042922,-931.86771549,8.715e-05,2]
[420716634,1776489045898,-76979.92044294,8.715e-05,2]
[420716635,1776489045953,-20592.60526196,8.715e-05,2]
[420716636,1776489046007,-494.5,8.715e-05,2]
[420716637,1776489046079,-2934.4,8.715e-05,2]
[420716638,1776489046272,-41326.6846784,8.715e-05,2]
[420716640,1776489046330,-94267.09597485,8.715e-05,2]
[420716641,1776489046340,-1303.9432,8.715e-05,2]
[420716642,1776489046349,-500.0,8.792e-05,2]
[420716643,1776489046359,-500.0,8.792e-05,2]
[420716644,1776489046379,-186.01765987,8.792e-05,2]
[420716645,1776489046390,-500.0,8.792e-05,2]
[420716646,1776489046399,-500.0,8.792e-05,2]
[420716647,1776489046409,-500.0,8.792e-05,2]
[420716648,1776489046419,-331.31643836,8.792e-05,2]
[420716649,1776489046428,-2625.774,8.814e-05,2]
[420716650,1776489046438,-169.427,8.814e-05,2]
[420716652,1776489046448,-250.0,8.814e-05,2]
[420716655,1776489046460,-250.0,8.814e-05,2]
[420716656,1776489046470,-269.02,8.82e-05,2]
[420716657,1776489046480,-1047.41,8.858e-05,2]
[420716658,1776489046489,-3333.32436592,8.864e-05,2]
[420716676,1776490084044,464.29,7.181e-05,2]
[420716678,1776490180669,1308.8905269,7.262e-05,2]
[420716684,1776490231952,-246.0,7.262e-05,2]
[420716685,1776490231962,-526.7834402,7.262e-05,2]
[420716686,1776490231974,-2116.37339696,7.262e-05,2]
[420716687,1776490231993,-1635.36487997,7.262e-05,2]
[420716688,1776490232005,-137.69775597,7.262e-05,2]
[420716689,1776490232015,-126.30446041,7.501e-05,2]
[420716690,1776490232027,-1073.69553959,7.501e-05,2]
[420716691,1776490232036,-891.59176399,7.502e-05,2]
[420716692,1776490232048,-708.40823601,7.502e-05,2]
[420716693,1776490232058,-601.27940765,7.502e-05,2]
[420716694,1776490232103,-326.03172292,7.502e-05,2]
[420716695,1776490232114,-267.37735194,7.502e-05,2]
[420716696,1776490232126,-254.14013485,7.502e-05,2]
[420716697,1776490232137,-369.98931999,7.502e-05,2]
[420716698,1776490232148,-1312.8788165,7.502e-05,2]
[420716699,1776490232158,-1063.02,7.796e-05,2]
[420716700,1776490232167,-291.0,7.823e-05,2]
[420716701,1776490232177,-134.06779498,7.824e-05,2]
[420716702,1776490232189,-257.8752,7.824e-05,2]
[420716703,1776490232201,-108.05700502,7.824e-05,2]
[420716704,1776490232210,-150.0,7.915e-05,2]
[420716705,1776490232219,-150.0,7.954e-05,2]
[420716706,1776490232229,-887.85785808,7.955e-05,2]
[420716707,1776490232240,-2424.07895351,7.955e-05,2]
[420716708,1776490232251,-4675.92415367,7.955e-05,2]
[420716709,1776490232263,-2993.88054873,7.955e-05,2]
[420716711,1776490232275,-540.40776292,7.955e-05,2]
[420716712,1776490232286,-323.3292545,7.955e-05,2]
[420716713,1776490232299,-1632.70955247,7.955e-05,2]
[420716717,1776490239139,-981.27320347,7.955e-05,2]
[420716718,1776490239256,-1222.12293849,7.955e-05,2]
[420716743,1776490240229,-765.82954504,7.955e-05,2]
[420716751,1776490243383,-658.88696035,7.955e-05,2]
[420716752,1776490243396,-2923.67926877,7.955e-05,2]
[420716753,1776490243405,-1995.82237149,7.955e-05,2]
[420716754,1776490243417,-7883.93762851,7.955e-05,2]
[420716755,1776490243427,-499.99,7.955e-05,2]
[420716756,1776490243436,-150.99,7.955e-05,2]
[420716757,1776490243446,-299.99,7.955e-05,2]
[420716758,1776490243456,-9999.99,7.955e-05,2]
[420716759,1776490243466,-1444.60842753,7.955e-05,2]
[420716760,1776490243478,-443.4506406,7.955e-05,2]
[420716762,1776490246076,-2315.7588,7.955e-05,2]
[420716763,1776490246294,-5796.17213187,7.955e-05,2]
[420716764,1776490246304,-3003.24,7.955e-05,2]
[420716765,1776490246314,-999.99,7.955e-05,2]
[420716766,1776490246323,-1269.66,7.956e-05,2]
[420716767,1776490246333,-4999.99,7.956e-05,2]
[420716768,1776490246342,-250.0,7.989e-05,2]
[420716769,1776490246351,-351.0,8.021e-05,2]
[420716770,1776490246361,-1437.0,8.033e-05,2]
[420716771,1776490246370,-1751.91521743,8.049e-05,2]
[420716772,1776490246379,-150.0,8.058e-05,2]
[420716773,1776490246389,-281.1,8.058e-05,2]
[420716774,1776490246399,-9999.99,8.058e-05,2]
[420716775,1776490246408,-764.57,8.058e-05,2]
[420716776,1776490246417,-3212.06,8.058e-05,2]
[420716777,1776490246428,-503.63062943,8.06e-05,2]
[420716778,1776490246437,-500.0,8.06e-05,2]
[420716779,1776490246448,-500.0,8.133e-05,2]
[420716780,1776490246458,-2100.62,8.154e-05,2]
[420716781,1776490246467,-169.427,8.154e-05,2]
[420716782,1776490246478,-1048.44255032,8.154e-05,2]
[420716783,1776490246487,-2619.875406,8.178e-05,2]
[420716784,1776490246497,-2000.0,8.219e-05,2]
[420716785,1776490246508,-726.04,8.219e-05,2]
[420716786,1776490246518,-1680.0,8.251e-05,2]
[420716787,1776490246528,-2950.44504244,8.252e-05,2]
[420716788,1776490246538,-193.0,8.252e-05,2]
[420716789,1776490246548,-250.0,8.252e-05,2]
[420716790,1776490246558,-243.92002141,8.252e-05,2]
[420716791,1776490246567,-150.0,8.344e-05,2]
[420716793,1776490246577,-200.0,8.354e-05,2]
[420716794,1776490246586,-1600.0,8.44e-05,2]
[420716795,1776490246595,-500.0,8.44e-05,2]
[420716796,1776490246605,-500.0,8.548e-05,2]
[420716797,1776490246614,-500.0,8.608e-05,2]
[420716798,1776490246624,-500.0,8.693e-05,2]
[420716799,1776490246633,-500.0,8.693e-05,2]
[420716800,1776490246644,-500.0,8.714e-05,2]
[420716801,1776490246655,-500.0,8.718e-05,2]
[420716802,1776490246664,-500.0,8.718e-05,2]
[420716803,1776490246673,-268.13310956,8.718e-05,2]
[420716804,1776490246682,-5531.0782255,8.719e-05,2]
[420716805,1776490246692,-32186.22882002,8.719e-05,2]
[420716806,1776490246714,-36310.5474248,8.719e-05,2]
[420716814,1776490537877,-1680.496,7.698e-05,2]
[420716815,1776490537901,-169.427,7.698e-05,2]
[420716816,1776490537925,-251.0,7.698e-05,2]
[420716817,1776490537948,-151.0,7.852e-05,2]
[420716818,1776490537973,-977.077,7.853e-05,2]
[420716895,1776490708485,163.6,0.000107,120]
[420716907,1776491169048,-247.189,7.221e-05,2]
[420716908,1776491203411,5950.68,7.132e-05,2]
[420716910,1776491241020,1350.54,7.081e-05,2]
[420716911,1776491289388,-500.0,0.00021918,120]
[420716912,1776491289464,-500.0,0.00022575,120]
[420716913,1776491289542,-500.0,0.00023068,120]
[420716914,1776491289621,-500.0,0.00023644,120]
[420716915,1776491289697,-500.0,0.00024219,120]
[420716916,1776491289775,-500.0,0.00024795,120]
[420716917,1776491289857,-500.0,0.0002537,120]
[420716918,1776491289936,-500.0,0.00025945,120]
[420716919,1776491290013,-500.0,0.00026529,120]
[420716920,1776491290090,-500.0,0.00027096,120]
[420716921,1776491290171,-500.0,0.00027671,120]
[420716922,1776491290249,-500.0,0.00028247,120]
[420716923,1776491290326,-500.0,0.00028822,120]
[420716924,1776491290403,-500.0,0.00029397,120]
[420716925,1776491290481,-500.0,0.00029973,120]
[420716926,1776491290561,-500.0,0.00030466,120]
[420716927,1776491290643,-500.0,0.0003101,120]
[420716928,1776491290721,-500.0,0.00031832,120]
[420716929,1776491290801,-500.0,0.00032274,120]
[420716930,1776491290880,-500.0,0.00032849,120]
[420716931,1776491290963,-1000.0,0.00032877,120]
[420716932,1776491291040,-1000.0,0.00032877,120]
[420716933,1776491291118,-1000.0,0.00032877,120]
[420716934,1776491291195,-1000.0,0.00032877,120]
[420716935,1776491291270,-1000.0,0.00032877,120]
[420716936,1776491291352,-500.0,0.00033425,120]
[420716937,1776491291431,-783.21,0.00033699,120]
[420716938,1776491291509,-160.0,0.00034,120]
[420716939,1776491291586,-500.0,0.00034,120]
[420716940,1776491291668,-500.0,0.00034575,120]
[420716941,1776491291745,-150.11,0.00034849,120]
[420716942,1776491291822,-255.0,0.00034852,120]
[420716943,1776491291899,-2463.19397547,0.00035,120]
[420716944,1776491291978,-500.0,0.00035,120]
[420716945,1776491292053,-27261.49714897,0.00035,120]
[420716946,1776491292128,-500.0,0.00035068,120]
[420716947,1776491292201,-6105.9430958,0.00035616,120]
[420716948,1776491292273,-10000.0,0.00035616,120]
[420716949,1776491292351,-500.0,0.00035726,120]
[420716950,1776491292428,-500.0,0.00036384,120]
[420716951,1776491292503,-500.0,0.00036877,120]
[420716952,1776491292579,-378.67636278,0.0003702,120]
[420716953,1776491292655,-350.0,0.00037021,120]
[420716954,1776491292731,-350.0,0.00037021,120]
[420716955,1776491292805,-274.05751758,0.00037021,120]
[420716956,1776491292883,-300.0,0.00037021,120]
[420716957,1776491292960,-300.0,0.00037021,120]
[420716958,1776491293033,-300.0,0.00037021,120]
[420716959,1776491293106,-300.0,0.00037021,120]
[420716960,1776491293180,-371.5107394,0.00037021,120]
[420716961,1776491293254,-193.24378873,0.000372,120]
[420716962,1776491293751,-178.97110449,0.00037473,120]
[420716963,1776491293835,-500.0,0.00037585,120]
[420716964,1776491293911,-49134.47,0.000379,120]
[420716965,1776491293989,-500.0,0.00038027,120]
[420716966,1776491294064,-10000.0,0.00038356,120]
[420716967,1776491294139,-500.0,0.000387,120]
[420716968,1776491294213,-670.5,0.00038831,120]
[420716969,1776491294288,-401.49,0.00038831,120]
[420716970,1776491294365,-180.13991499,0.00039727,120]
[420716971,1776491294441,-205.95995134,0.00039727,120]
[420716972,1776491294518,-168.4844498,0.00039727,120]
[420716973,1776491294593,-166.39250321,0.00039727,120]
[420716974,1776491294668,-311.9044,0.000398,120]
[420716975,1776491294741,-658.532223,0.000399,120]
[420716976,1776491294816,-683.63058563,0.0004,120]
[420716977,1776491294890,-25704.86424672,0.0004,120]
[420716978,1776491294965,-175.7233,0.0004,120]
[420716979,1776491295037,-163.0,0.0004,120]
[420716980,1776491295108,-21070.43901196,0.0004,120]
[420716981,1776491295184,-1589.27237994,0.0004,120]
[420716982,1776491295256,-5050.8153731,0.0004,120]
[420716983,1776491295328,-319.95814264,0.0004,120]
[420716984,1776491295399,-160.0,0.0004,120]